bitfinex/quotes_BTCUSD_20240810
["timestamp","ask_amount","ask_price","bid_price","bid_amount"]
[1723299621313,0.00837,60669.0,60668.0,2.48543663]
[1723299621547,0.00837,60669.0,60668.0,2.7533847]
[1723299622899,0.00837,60669.0,60668.0,2.75471044]
[1723299623813,0.00837,60669.0,60668.0,2.75488483]
[1723299625461,0.00837,60669.0,60668.0,2.90263418]
[1723299625889,0.00837,60669.0,60668.0,2.75488483]
[1723299626079,0.00837,60669.0,60668.0,2.90263666]
[1723299626323,0.00837,60669.0,60668.0,2.75488483]
[1723299626671,0.00837,60669.0,60668.0,2.90265235]
[1723299626977,0.00837,60669.0,60668.0,2.79435235]
[1723299627288,0.00837,60669.0,60668.0,2.62458483]
[1723299627498,0.00837,60669.0,60668.0,2.62438111]
[1723299627700,0.00837,60669.0,60668.0,2.10062821]
[1723299627879,0.00837,60669.0,60668.0,2.62439037]
[1723299628105,0.00837,60669.0,60668.0,2.46821078]
[1723299628288,0.00837,60669.0,60668.0,2.75248615]
[1723299629198,0.00837,60669.0,60668.0,2.90025367]
[1723299629398,0.00837,60669.0,60668.0,2.75248615]
[1723299629683,0.00832,60676.0,60675.0,0.916466]
[1723299629871,0.00832,60676.0,60675.0,2.76049593]
[1723299630092,0.00832,60676.0,60675.0,2.90832602]
[1723299630299,0.00832,60676.0,60675.0,2.93032602]
[1723299630646,0.00832,60676.0,60675.0,2.93033459]
[1723299631673,0.00832,60676.0,60675.0,2.94433459]
[1723299631884,0.00832,60676.0,60675.0,2.77649593]
[1723299632219,0.00832,60676.0,60675.0,2.79049593]
[1723299632613,0.00832,60676.0,60675.0,2.79619025]
[1723299632819,0.00832,60676.0,60675.0,2.99300225]
[1723299633055,0.00832,60676.0,60675.0,3.18929527]
[1723299633519,0.00832,60676.0,60675.0,3.18937877]
[1723299633740,0.00832,60676.0,60675.0,3.90937877]
[1723299633967,0.00832,60676.0,60675.0,4.01201415]
[1723299634195,0.00832,60676.0,60675.0,3.99801415]
[1723299634422,0.00832,60676.0,60675.0,3.77963763]
[1723299634664,0.00832,60676.0,60675.0,4.01205939]
[1723299634903,0.00832,60676.0,60675.0,4.05022611]
[1723299635139,0.00832,60676.0,60675.0,4.03622611]
[1723299635368,0.00832,60676.0,60675.0,3.77963763]
[1723299635601,0.00832,60676.0,60675.0,3.79363763]
[1723299635821,0.00832,60676.0,60675.0,3.77963763]
[1723299636266,0.00832,60676.0,60675.0,3.79363763]
[1723299636707,0.00832,60676.0,60675.0,3.77963763]
[1723299636912,0.002819,60676.0,60675.0,3.77963763]
[1723299637131,0.0083,60681.0,60680.0,0.124399]
[1723299637353,0.0083,60681.0,60680.0,1.99345998]
[1723299637592,0.0083,60681.0,60680.0,2.29976117]
[1723299637843,0.0083,60681.0,60680.0,2.48455917]
[1723299638743,0.0083,60681.0,60680.0,2.48407038]
[1723299639458,0.0083,60681.0,60680.0,2.49807038]
[1723299639706,0.0083,60681.0,60680.0,2.60787038]
[1723299639968,0.0083,60681.0,60680.0,3.21387038]
[1723299640213,0.0083,60681.0,60680.0,3.33023797]
[1723299640724,0.00831,60693.0,60688.0,1.124273]
[1723299640972,0.00831,60693.0,60688.0,2.14701861]
[1723299641186,0.00831,60693.0,60688.0,2.88164704]
[1723299641411,0.00831,60693.0,60688.0,2.82812561]
[1723299641661,0.00831,60693.0,60688.0,2.58865308]
[1723299641882,0.00831,60693.0,60688.0,3.43802432]
[1723299642147,0.00831,60693.0,60688.0,3.540612]
[1723299642407,0.00831,60693.0,60688.0,3.58398523]
[1723299642631,0.00831,60693.0,60688.0,3.41300577]
[1723299642868,0.00831,60693.0,60688.0,3.58398525]
[1723299643113,0.00831,60693.0,60688.0,3.59798525]
[1723299643529,0.00831,60693.0,60688.0,3.58398525]
[1723299643696,0.00831,60693.0,60688.0,3.55461202]
[1723299643901,0.00831,60693.0,60688.0,3.56861202]
[1723299644123,0.00831,60693.0,60688.0,3.56861203]
[1723299644463,0.14801,60693.0,60688.0,3.00434486]
[1723299644643,0.1057,60689.0,60688.0,2.23141423]
[1723299644844,0.1057,60689.0,60688.0,2.11036758]
[1723299645045,0.0001,60689.0,60688.0,2.20680709]
[1723299645247,0.0001,60689.0,60688.0,2.10836758]
[1723299645652,0.00093,60689.0,60688.0,2.10836758]
[1723299646070,0.00093,60689.0,60688.0,2.13136758]
[1723299647103,0.00093,60689.0,60688.0,2.13336758]
[1723299647544,0.00093,60689.0,60688.0,1.92569307]
[1723299647750,0.13113,60689.0,60688.0,1.92569307]
[1723299647922,0.13113,60689.0,60688.0,1.63171358]
[1723299648710,0.13113,60689.0,60688.0,1.43764092]
[1723299648908,0.13113,60689.0,60688.0,1.56310992]
[1723299649320,0.13113,60689.0,60688.0,1.63151847]
[1723299649523,0.23613,60689.0,60688.0,1.48974147]
[1723299649723,0.23613,60689.0,60688.0,1.58974147]
[1723299649979,0.23613,60689.0,60688.0,1.57574147]
[1723299650643,0.23613,60689.0,60688.0,1.57578162]
[1723299651057,0.23613,60689.0,60688.0,1.58978162]
[1723299651269,0.23613,60689.0,60688.0,1.55278162]
[1723299651491,0.23613,60689.0,60688.0,1.47037312]
[1723299651697,0.23613,60689.0,60688.0,1.48437312]
[1723299651953,0.23613,60689.0,60688.0,1.23359612]
[1723299652241,0.23613,60689.0,60688.0,0.90404212]
[1723299652446,0.23613,60689.0,60688.0,0.90358132]
[1723299653546,0.23613,60689.0,60688.0,1.06835832]
[1723299653747,0.23613,60689.0,60688.0,1.05435832]
[1723299653948,0.23613,60689.0,60688.0,1.03035832]
[1723299654151,0.23613,60689.0,60688.0,1.05435832]
[1723299654353,0.23613,60689.0,60688.0,1.23313532]
[1723299654723,0.13113,60689.0,60688.0,1.21913532]
[1723299654926,0.13113,60689.0,60688.0,1.36991232]
[1723299655129,0.13113,60689.0,60688.0,1.39691232]
[1723299655764,0.13113,60689.0,60688.0,1.27186392]
[1723299656065,0.13113,60689.0,60688.0,1.39680349]
[1723299656386,0.13113,60689.0,60688.0,1.23202649]
[1723299657210,0.13113,60689.0,60688.0,1.21802649]
[1723299657412,0.13113,60689.0,60688.0,1.38280349]
[1723299657533,0.13113,60689.0,60688.0,1.40580349]
[1723299658002,0.13113,60689.0,60688.0,1.41980349]
[1723299658138,0.13113,60689.0,60688.0,1.39680349]
[1723299658601,0.13113,60689.0,60688.0,1.38280349]
[1723299659165,0.13113,60689.0,60688.0,1.21862689]
[1723299659382,0.13113,60689.0,60688.0,1.23262689]
[1723299659689,0.13113,60689.0,60688.0,1.23262746]
[1723299661696,0.13113,60689.0,60688.0,1.06785046]
[1723299661697,0.23613,60689.0,60688.0,1.06785046]
[1723299665184,0.23613,60689.0,60688.0,1.23262746]
[1723299666779,0.23613,60689.0,60688.0,1.23309208]
[1723299669134,0.23613,60689.0,60688.0,1.10708692]
[1723299669335,0.23613,60689.0,60688.0,1.23281423]
[1723299672103,0.23613,60689.0,60688.0,1.23286869]
[1723299675694,0.23613,60689.0,60688.0,1.23282776]
[1723299678289,0.23613,60689.0,60688.0,1.06805076]
[1723299679256,0.23613,60689.0,60688.0,0.94230992]
[1723299679371,0.23613,60689.0,60688.0,1.06807794]
[1723299679768,0.23613,60689.0,60688.0,1.23285494]
[1723299683804,0.23613,60689.0,60688.0,1.10708692]
[1723299683975,0.23613,60689.0,60688.0,1.23284824]
[1723299684766,0.23613,60689.0,60688.0,1.39076904]
[1723299685747,0.23613,60689.0,60688.0,1.39120375]
[1723299686716,0.23613,60689.0,60688.0,1.45962203]
[1723299687301,0.23613,60689.0,60688.0,1.63066274]
[1723299687705,0.23613,60689.0,60688.0,1.45962203]
[1723299688309,0.23613,60689.0,60688.0,1.63062694]
[1723299688976,0.23613,60689.0,60688.0,1.63062517]
[1723299689450,0.13113,60689.0,60688.0,1.63062517]
[1723299690403,0.13113,60689.0,60688.0,1.6799179]
[1723299692046,0.13113,60689.0,60688.0,1.67999085]
[1723299692313,0.13113,60689.0,60688.0,1.70463721]
[1723299692860,0.13113,60689.0,60688.0,1.50906491]
[1723299693303,0.13113,60689.0,60688.0,1.45966203]
[1723299693504,0.13113,60689.0,60688.0,1.29488503]
[1723299693707,0.13113,60689.0,60688.0,0.64732032]
[1723299693708,0.23273,60689.0,60688.0,0.64732032]
[1723299694463,0.654665,60689.0,60688.0,0.64732032]
[1723299694724,0.654665,60689.0,60688.0,0.50733]
[1723299695105,0.80396936,60689.0,60688.0,0.49633]
[1723299695272,0.754665,60689.0,60688.0,0.49633]
[1723299695698,0.962065,60689.0,60688.0,0.49633]
[1723299696129,1.01136936,60689.0,60688.0,0.49633]
[1723299696331,0.963065,60689.0,60688.0,0.49733]
[1723299696752,0.962065,60689.0,60688.0,0.49633]
[1723299697174,0.97214087,60689.0,60688.0,0.49733]
[1723299697562,0.97214087,60689.0,60688.0,0.49533]
[1723299697767,0.97514087,60689.0,60688.0,0.49533]
[1723299698387,0.97214087,60689.0,60688.0,0.49533]
[1723299698763,0.97514087,60689.0,60688.0,0.49633]
[1723299702421,0.95514087,60689.0,60688.0,0.49633]
[1723299702646,0.79036687,60689.0,60688.0,0.49633]
[1723299703020,1.13895579,60689.0,60688.0,0.49633]
[1723299703426,1.13695579,60689.0,60688.0,0.49533]
[1723299703931,1.13895579,60689.0,60688.0,0.49633]
[1723299704134,1.13695579,60689.0,60688.0,0.49533]
[1723299704532,1.13895579,60689.0,60688.0,0.49633]
[1723299704837,1.13595579,60689.0,60688.0,0.49533]
[1723299705038,0.97214087,60689.0,60688.0,0.49533]
[1723299705245,0.97414087,60689.0,60688.0,0.49633]
[1723299705787,0.97214087,60689.0,60688.0,0.49533]
[1723299706173,0.97414087,60689.0,60688.0,0.49633]
[1723299708743,0.96414087,60689.0,60688.0,0.49633]
[1723299709766,0.97414087,60689.0,60688.0,0.49633]
[1723299710094,1.13891487,60689.0,60688.0,0.49633]
[1723299711111,1.13691487,60689.0,60688.0,0.49533]
[1723299711309,0.97214087,60689.0,60688.0,0.49533]
[1723299711502,0.97414087,60689.0,60688.0,0.49633]
[1723299712246,0.97414087,60689.0,60688.0,0.49533]
[1723299712247,0.97214087,60689.0,60688.0,0.49533]
[1723299712674,0.97414087,60689.0,60688.0,0.49633]
[1723299712885,0.95414087,60689.0,60688.0,0.49633]
[1723299713463,0.96414087,60689.0,60688.0,0.49633]
[1723299713925,0.95414087,60689.0,60688.0,0.49633]
[1723299714063,0.33673,60689.0,60688.0,0.49633]
[1723299714267,0.23513,60689.0,60688.0,0.49633]
[1723299714490,0.10493,60689.0,60688.0,0.49633]
[1723299714697,0.00493,60689.0,60688.0,0.49633]
[1723299714944,0.00493,60689.0,60688.0,1.08208692]
[1723299715144,0.00493,60689.0,60688.0,1.31668692]
[1723299715345,0.00293,60689.0,60688.0,1.44068559]
[1723299715552,0.00293,60689.0,60688.0,1.60546259]
[1723299716176,0.00093,60689.0,60688.0,1.60446259]
[1723299716378,0.00093,60689.0,60688.0,1.60438884]
[1723299716572,0.00093,60689.0,60688.0,1.60838884]
[1723299716814,0.00293,60689.0,60688.0,1.60838884]
[1723299717222,0.00093,60689.0,60688.0,1.60738884]
[1723299717573,0.00093,60689.0,60688.0,1.61238884]
[1723299718395,0.00093,60689.0,60688.0,1.60938884]
[1723299718819,0.00093,60689.0,60688.0,1.61338884]
[1723299719226,0.00093,60689.0,60688.0,1.60938884]
[1723299719595,0.00093,60689.0,60688.0,1.61638884]
[1723299719729,0.00093,60689.0,60688.0,1.61138884]
[1723299719933,0.00093,60689.0,60688.0,1.60418535]
[1723299720131,0.00093,60689.0,60688.0,1.61418535]
[1723299720356,0.00093,60689.0,60688.0,1.62018535]
[1723299720563,0.00093,60689.0,60688.0,1.45540835]
[1723299720724,0.00093,60689.0,60688.0,1.04603135]
[1723299721223,0.00093,60689.0,60688.0,1.05503135]
[1723299721619,0.00093,60689.0,60688.0,0.72643943]
[1723299721824,0.00093,60689.0,60688.0,0.71743943]
[1723299722226,0.00093,60689.0,60688.0,0.71143943]
[1723299722547,0.00084816,60689.0,60688.0,0.87635857]
[1723299722734,0.00084816,60689.0,60688.0,0.88335857]
[1723299722946,0.00084816,60689.0,60688.0,0.87635857]
[1723299723447,0.00084816,60689.0,60688.0,0.88335857]
[1723299724383,0.00084816,60689.0,60688.0,0.89335857]
[1723299724724,0.00084816,60689.0,60688.0,0.88335857]
[1723299724923,0.00084816,60689.0,60688.0,0.71858157]
[1723299725124,0.00084816,60689.0,60688.0,0.72758157]
[1723299725323,0.00084816,60689.0,60688.0,0.89235857]
[1723299725752,0.39353516,60689.0,60688.0,0.63519357]
[1723299726117,0.39353516,60689.0,60688.0,0.51033]
[1723299726118,0.55830916,60689.0,60688.0,0.51033]
[1723299726344,0.39353516,60689.0,60688.0,0.51033]
[1723299726543,0.55830916,60689.0,60688.0,0.51033]
[1723299726860,0.39353516,60689.0,60688.0,0.51033]
[1723299727307,0.39353516,60689.0,60688.0,0.50333]
[1723299727507,0.39353516,60689.0,60688.0,0.49433]
[1723299727761,0.39353516,60689.0,60688.0,0.49933]
[1723299727964,0.39353516,60689.0,60688.0,0.50633]
[1723299728114,0.55830916,60689.0,60688.0,0.50633]
[1723299729884,0.47940916,60689.0,60688.0,0.50633]
[1723299730526,0.47940916,60689.0,60688.0,0.50133]
[1723299730746,0.65418316,60689.0,60688.0,0.50133]
[1723299730945,0.65818316,60689.0,60688.0,0.50133]
[1723299731317,0.65418316,60689.0,60688.0,0.49433]
[1723299731725,0.66635974,60689.0,60688.0,0.49533]
[1723299731859,0.67035974,60689.0,60688.0,0.49533]
[1723299732064,0.66635974,60689.0,60688.0,0.49433]
[1723299732260,0.66235974,60689.0,60688.0,0.49433]
[1723299732464,0.66635974,60689.0,60688.0,0.49433]
[1723299732668,0.67035974,60689.0,60688.0,0.49433]
[1723299733276,0.66635974,60689.0,60688.0,0.49433]
[1723299734833,0.66235974,60689.0,60688.0,0.49433]
[1723299735262,0.66535974,60689.0,60688.0,0.49533]
[1723299735622,0.66635974,60689.0,60688.0,0.49533]
[1723299736079,0.66935974,60689.0,60688.0,0.49633]
[1723299736479,0.66635974,60689.0,60688.0,0.49533]
[1723299736680,0.67635974,60689.0,60688.0,0.49533]
[1723299736881,0.67635974,60689.0,60688.0,0.4972441]
[1723299736882,0.67935974,60689.0,60688.0,0.4972441]
[1723299737295,0.67535974,60689.0,60688.0,0.4962441]
[1723299738392,0.67535974,60689.0,60688.0,0.4955327]
[1723299739122,0.67635974,60689.0,60688.0,0.4955327]
[1723299739530,0.67935974,60689.0,60688.0,0.4965327]
[1723299739894,0.67635974,60689.0,60688.0,0.4955327]
[1723299740373,0.67935974,60689.0,60688.0,0.4965327]
[1723299743043,1.12111708,60689.0,60688.0,0.4965327]
[1723299743243,1.85411708,60689.0,60688.0,0.4965327]
[1723299743520,1.85379735,60689.0,60688.0,0.4965327]
[1723299743725,1.74094866,60689.0,60688.0,0.4965327]
[1723299744281,1.83920173,60689.0,60688.0,0.4965327]
[1723299744689,2.00397573,60689.0,60688.0,0.4965327]
[1723299744890,2.16812543,60689.0,60688.0,0.42783022]
[1723299745414,2.15812543,60689.0,60688.0,0.42783022]
[1723299745794,2.13355036,60689.0,60688.0,0.42783022]
[1723299746214,2.06687236,60689.0,60688.0,0.0019141]
[1723299746424,1.10394866,60689.0,60688.0,0.0009141]
[1723299746599,1.10694866,60689.0,60688.0,0.0019141]
[1723299746802,1.11094866,60689.0,60688.0,0.0029141]
[1723299747002,1.11094866,60689.0,60688.0,0.0019141]
[1723299747003,1.10794866,60689.0,60688.0,0.0019141]
[1723299747481,1.10694866,60689.0,60688.0,0.0019141]
[1723299747727,1.08094866,60689.0,60688.0,0.0009141]
[1723299747915,1.10494866,60689.0,60688.0,0.0019141]
[1723299748109,1.10794866,60689.0,60688.0,0.0029141]
[1723299748310,1.08794866,60689.0,60688.0,0.0029141]
[1723299748921,1.10794866,60689.0,60688.0,0.0029141]
[1723299749994,1.09794866,60689.0,60688.0,0.0029141]
[1723299750335,1.10794866,60689.0,60688.0,0.0029141]
[1723299750529,1.09794866,60689.0,60688.0,0.0029141]
[1723299750730,1.24141068,60689.0,60688.0,0.0029141]
[1723299750931,1.25141068,60689.0,60688.0,0.0029141]
[1723299751132,1.09794866,60689.0,60688.0,0.0029141]
[1723299752145,1.12094866,60689.0,60688.0,0.0029141]
[1723299753695,1.13094866,60689.0,60688.0,0.0029141]
[1723299755747,1.12094866,60689.0,60688.0,0.0029141]
[1723299755982,1.12094866,60689.0,60682.0,0.000913]
[1723299755983,1.035265,60683.0,60682.0,0.000913]
[1723299756168,1.37092638,60683.0,60682.0,0.000913]
[1723299757672,1.39392638,60683.0,60682.0,0.000913]
[1723299757916,1.41492638,60683.0,60682.0,0.002913]
[1723299758092,1.42492638,60683.0,60682.0,0.002913]
[1723299758295,1.41492638,60683.0,60682.0,0.002913]
[1723299758652,1.42492638,60683.0,60682.0,0.002913]
[1723299759937,2.21880765,60683.0,60682.0,0.002913]
[1723299760106,2.05492638,60683.0,60682.0,0.002913]
[1723299760301,1.41492638,60683.0,60682.0,0.002913]
[1723299760504,1.42492638,60683.0,60682.0,0.002913]
[1723299760706,1.49518386,60683.0,60682.0,0.002913]
[1723299760905,2.02403473,60683.0,60682.0,0.002913]
[1723299761093,2.04518741,60683.0,60682.0,0.002913]
[1723299761289,2.09426599,60683.0,60682.0,0.002913]
[1723299761656,2.43320569,60683.0,60682.0,0.002913]
[1723299761858,2.3741261,60683.0,60682.0,0.002913]
[1723299762719,0.247239,60670.0,60669.0,0.000913]
[1723299763277,0.412065,60670.0,60669.0,0.000913]
[1723299763479,0.512065,60670.0,60669.0,0.000913]
[1723299763725,0.59086668,60670.0,60669.0,0.000913]
[1723299764322,0.60086668,60670.0,60669.0,0.000913]
[1723299764514,0.61086668,60670.0,60669.0,0.000913]
[1723299764716,0.77669268,60670.0,60669.0,0.000913]
[1723299765169,0.77869268,60670.0,60669.0,0.000913]
[1723299765508,0.61386668,60670.0,60669.0,0.000913]
[1723299765711,0.103,60670.0,60669.0,0.102513]
[1723299766121,0.185413,60670.0,60669.0,0.236513]
[1723299767476,0.085413,60670.0,60669.0,0.236513]
[1723299769633,0.250239,60670.0,60669.0,0.236513]
[1723299769855,0.350239,60670.0,60669.0,0.236513]
[1723299771102,0.350239,60670.0,60669.0,0.000913]
[1723299772548,0.515065,60670.0,60669.0,0.000913]
[1723299776243,0.515896,60670.0,60669.0,0.000913]
[1723299777404,0.515896,60670.0,60669.0,0.133113]
[1723299778814,0.515896,60670.0,60669.0,0.000913]
[1723299779207,0.615896,60670.0,60669.0,0.000913]
[1723299780660,0.790722,60670.0,60669.0,0.000913]
[1723299780835,0.780722,60670.0,60669.0,0.000913]
[1723299780999,0.800722,60670.0,60669.0,0.000913]
[1723299782258,0.790722,60670.0,60669.0,0.000913]
[1723299782476,0.94453692,60670.0,60669.0,0.000913]
[1723299782667,0.95453692,60670.0,60669.0,0.000913]
[1723299782867,0.94453692,60670.0,60669.0,0.000913]
[1723299783118,0.96453692,60670.0,60669.0,0.000913]
[1723299784181,0.94453692,60670.0,60669.0,0.000913]
[1723299784400,0.95453692,60670.0,60669.0,0.000913]
[1723299784604,0.96453692,60670.0,60669.0,0.000913]
[1723299785483,0.95453692,60670.0,60669.0,0.000913]
[1723299785763,1.03353692,60670.0,60669.0,0.000913]
[1723299786045,1.04353692,60670.0,60669.0,0.000913]
[1723299787089,1.81253692,60670.0,60669.0,0.000913]
[1723299787288,1.94314273,60670.0,60669.0,0.000913]
[1723299787521,1.35770816,60670.0,60669.0,0.000913]
[1723299787697,1.98770816,60670.0,60669.0,0.000913]
[1723299788102,1.98670816,60670.0,60669.0,0.000913]
[1723299788553,1.99470816,60670.0,60669.0,0.001913]
[1723299788728,1.36470816,60670.0,60669.0,0.001913]
[1723299789134,1.28323436,60670.0,60669.0,0.001913]
[1723299789281,1.51569607,60670.0,60669.0,0.001913]
[1723299789885,1.51569623,60670.0,60669.0,0.001913]
[1723299790300,1.54026204,60670.0,60669.0,0.001913]
[1723299790449,1.56482785,60670.0,60669.0,0.001913]
[1723299790728,1.56282785,60670.0,60669.0,0.001913]
[1723299791328,1.56282785,60670.0,60669.0,0.002913]
[1723299791329,1.73765385,60670.0,60669.0,0.002913]
[1723299791891,1.58639171,60670.0,60669.0,0.002913]
[1723299792096,1.46356265,60670.0,60669.0,0.002913]
[1723299792297,1.53733964,60670.0,60669.0,0.002913]
[1723299792498,1.46356265,60670.0,60669.0,0.002913]
[1723299792875,0.96153692,60670.0,60669.0,0.002913]
[1723299793094,0.98153692,60670.0,60669.0,0.002913]
[1723299793967,1.09003692,60670.0,60669.0,0.002913]
[1723299794124,1.10003692,60670.0,60669.0,0.002913]
[1723299794823,0.46357,60670.0,60669.0,0.135513]
[1723299795021,0.46357,60670.0,60669.0,0.235413]
[1723299795551,0.628396,60670.0,60669.0,0.235413]
[1723299796764,0.728396,60670.0,60669.0,0.235413]
[1723299797556,0.56357,60670.0,60669.0,0.235413]
[1723299804025,0.728396,60670.0,60669.0,0.235413]
[1723299805510,0.398744,60670.0,60669.0,0.235413]
[1723299805723,0.56357,60670.0,60669.0,0.235413]
[1723299807065,0.728396,60670.0,60669.0,0.235413]
[1723299808011,0.720396,60670.0,60669.0,0.234413]
[1723299808213,0.710396,60670.0,60669.0,0.233413]
[1723299808404,0.718396,60670.0,60669.0,0.234413]
[1723299808846,0.713396,60670.0,60669.0,0.233413]
[1723299809258,0.715396,60670.0,60669.0,0.233413]
[1723299809633,0.54757,60670.0,60669.0,0.233413]
[1723299809835,0.54557,60670.0,60669.0,0.233413]
[1723299810035,0.55057,60670.0,60669.0,0.233413]
[1723299810726,0.005831,60670.0,60669.0,0.65446992]
[1723299810897,0.005831,60670.0,60669.0,0.61303688]
[1723299811054,0.005831,60670.0,60669.0,0.61301996]
[1723299811258,0.005831,60670.0,60669.0,0.77784796]
[1723299811784,0.010831,60670.0,60669.0,0.77762245]
[1723299812107,0.005831,60670.0,60669.0,0.77762245]
[1723299812339,0.000831,60670.0,60669.0,0.77762245]
[1723299812543,0.000831,60670.0,60669.0,0.77962245]
[1723299812764,0.000831,60670.0,60669.0,0.61879445]
[1723299812937,0.000831,60670.0,60669.0,0.37256553]
[1723299813882,0.000831,60670.0,60669.0,0.45497953]
[1723299815533,0.000831,60670.0,60669.0,0.61380753]
[1723299815770,0.000831,60670.0,60669.0,0.44897953]
[1723299815970,0.000831,60670.0,60669.0,0.45197953]
[1723299816351,0.000831,60670.0,60669.0,0.45297953]
[1723299818852,0.000831,60670.0,60669.0,0.78162245]
[1723299819656,0.000831,60670.0,60669.0,0.94645045]
[1723299819924,0.000831,60670.0,60669.0,0.94345045]
[1723299820098,0.000831,60670.0,60669.0,0.94245045]
[1723299820339,0.000831,60670.0,60669.0,0.94645045]
[1723299820448,0.000831,60670.0,60669.0,0.94845045]
[1723299820655,0.000831,60670.0,60669.0,1.11327845]
[1723299820880,0.000831,60670.0,60669.0,1.23105622]
[1723299821289,0.000831,60670.0,60669.0,0.94845045]
[1723299822162,0.000831,60670.0,60669.0,0.94806407]
[1723299822558,0.000831,60670.0,60669.0,0.82529792]
[1723299822761,0.000831,60670.0,60669.0,0.94427222]
[1723299823069,0.000831,60670.0,60669.0,0.94727222]
[1723299823269,0.000831,60670.0,60669.0,0.94527222]
[1723299823721,0.001831,60670.0,60669.0,1.12110022]
[1723299824279,0.000831,60670.0,60669.0,1.10710022]
[1723299824490,0.002831,60670.0,60669.0,1.12410022]
[1723299824915,0.001831,60670.0,60669.0,1.11610022]
[1723299825379,0.002831,60670.0,60669.0,1.12610022]
[1723299826206,0.001831,60670.0,60669.0,0.95227222]
[1723299826562,0.002831,60670.0,60669.0,1.12810022]
[1723299827225,0.000831,60670.0,60669.0,0.94227222]
[1723299827411,0.001831,60670.0,60669.0,0.95327222]
[1723299827624,0.002831,60670.0,60669.0,1.13010022]
[1723299827754,0.002831,60670.0,60669.0,0.96527222]
[1723299828503,0.002831,60670.0,60669.0,1.13010022]
[1723299829197,0.002831,60670.0,60669.0,1.13054837]
[1723299830434,0.002831,60670.0,60669.0,0.96572037]
[1723299832757,0.002831,60670.0,60669.0,0.96588093]
[1723299833168,0.002831,60670.0,60669.0,0.96588091]
[1723299840272,0.002831,60670.0,60669.0,1.03428155]
[1723299840473,0.002831,60670.0,60669.0,0.62221155]
[1723299840677,0.081831,60670.0,60669.0,0.15745974]
[1723299840899,0.212831,60670.0,60669.0,0.15745974]
[1723299841305,0.001831,60670.0,60669.0,0.22887374]
[1723299841594,0.000831,60670.0,60669.0,0.38170174]
[1723299841734,0.000831,60670.0,60669.0,0.22787374]
[1723299841735,0.001831,60670.0,60669.0,0.22787374]
[1723299841935,0.002831,60670.0,60669.0,0.23987374]
[1723299842135,0.002831,60670.0,60669.0,0.15745974]
[1723299842766,0.002831,60670.0,60669.0,0.15751632]
[1723299843365,0.002831,60670.0,60669.0,0.116327]
[1723299843591,0.002831,60670.0,60669.0,0.2399302]
[1723299843786,0.002831,60670.0,60669.0,0.1575162]
[1723299844590,0.002831,60670.0,60669.0,0.15739475]
[1723299845608,0.081831,60670.0,60669.0,0.14739475]
[1723299845779,0.295244,60670.0,60669.0,0.14739475]
[1723299845981,0.734896,60670.0,60669.0,0.14739475]
[1723299846447,0.734896,60670.0,60669.0,0.023913]
[1723299847083,0.999722,60670.0,60669.0,0.023913]
[1723299847312,1.00802669,60670.0,60669.0,0.023913]
[1723299847815,1.00702669,60670.0,60669.0,0.012913]
[1723299847968,1.00702669,60670.0,60669.0,0.000913]
[1723299847969,1.00602669,60670.0,60669.0,0.000913]
[1723299848371,1.00602669,60670.0,60669.0,0.005913]
[1723299848963,1.00602669,60670.0,60669.0,0.000913]
[1723299849164,1.02602669,60670.0,60669.0,0.000913]
[1723299849855,1.03602669,60670.0,60669.0,0.001913]
[1723299850077,1.01602669,60670.0,60669.0,0.001913]
[1723299850314,1.03602669,60670.0,60669.0,0.001913]
[1723299850513,1.03602669,60670.0,60669.0,0.005913]
[1723299850978,1.01602669,60670.0,60669.0,0.001913]
[1723299851176,1.03602669,60670.0,60669.0,0.001913]
[1723299851330,1.02902669,60670.0,60669.0,0.002913]
[1723299851733,1.03902669,60670.0,60669.0,0.001913]
[1723299852154,1.04782831,60670.0,60669.0,0.002913]
[1723299852735,1.03882831,60670.0,60669.0,0.001913]
[1723299853157,1.04782831,60670.0,60669.0,0.002913]
[1723299856846,1.02782831,60670.0,60669.0,0.002913]
[1723299856991,1.04782831,60670.0,60669.0,0.002913]
[1723299858350,1.02782831,60670.0,60669.0,0.002913]
[1723299858609,1.04782831,60670.0,60669.0,0.002913]
[1723299860217,1.02782831,60670.0,60669.0,0.002913]
[1723299860416,1.04782831,60670.0,60669.0,0.002913]
[1723299863535,1.02782831,60670.0,60669.0,0.002913]
[1723299863895,1.02782831,60670.0,60669.0,0.238513]
[1723299863896,0.02263262,60670.0,60669.0,0.238513]
[1723299865379,0.00963262,60670.0,60669.0,0.237513]
[1723299865571,0.00963262,60670.0,60669.0,0.319927]
[1723299866223,0.01563262,60670.0,60669.0,0.320927]
[1723299866436,0.00663262,60670.0,60669.0,0.319927]
[1723299866953,0.01463262,60670.0,60669.0,0.320927]
[1723299867171,0.01463262,60670.0,60669.0,0.81439792]
[1723299867355,0.01463262,60670.0,60669.0,0.93792954]
[1723299867500,0.00663262,60670.0,60669.0,0.93692954]
[1723299867897,0.00063262,60670.0,60669.0,0.93592954]
[1723299868100,0.00463262,60670.0,60669.0,0.93592954]
[1723299868328,0.01063262,60670.0,60669.0,0.93700719]
[1723299868706,0.01063262,60670.0,60669.0,0.93600719]
[1723299868707,0.00463262,60670.0,60669.0,0.93600719]
[1723299869979,0.00563262,60670.0,60669.0,0.94700719]
[1723299870744,0.00163262,60670.0,60669.0,0.94700719]
[1723299871139,0.00263262,60670.0,60669.0,0.95900719]
[1723299871574,0.00063262,60670.0,60669.0,0.93600719]
[1723299871973,0.00263262,60670.0,60669.0,0.95600719]
[1723299872340,0.00163262,60670.0,60669.0,0.94800719]
[1723299872988,0.00263262,60670.0,60669.0,0.95900719]
[1723299874377,0.00163262,60670.0,60669.0,0.94700719]
[1723299874844,0.00263262,60670.0,60669.0,0.95600719]
[1723299875148,0.00163262,60670.0,60669.0,0.94700719]
[1723299875550,0.00163262,60670.0,60669.0,1.19083519]
[1723299875802,0.00263262,60670.0,60669.0,1.20283519]
[1723299877765,0.00263262,60670.0,60669.0,1.12383519]
[1723299878524,0.00263262,60670.0,60669.0,1.00022592]
[1723299878771,0.00263262,60670.0,60669.0,1.12390102]
[1723299879178,0.00263262,60670.0,60669.0,1.1238937]
[1723299882738,0.00263262,60670.0,60669.0,1.12366393]
[1723299885866,0.00263262,60670.0,60669.0,0.95883593]
[1723299886777,0.00263262,60670.0,60669.0,0.83539792]
[1723299887021,0.00263262,60670.0,60669.0,0.95896512]